bitfinex/quotes_ETHUSD_20251015
["timestamp","ask_amount","ask_price","bid_price","bid_amount"]
[1760514602112,3.532,4130.3,4129.8,2.42138131]
[1760514602278,0.0604,4129.9,4129.8,2.42138131]
[1760514602997,2.441,4130.2,4129.3,0.4397]
[1760514603195,2.441,4130.2,4129.9,2.42136613]
[1760514603414,0.1588,4130.1,4129.9,2.42136613]
[1760514603814,4.217781,4130.5,4129.3,0.4397]
[1760514604015,2.441,4130.4,4129.4,5.84558603]
[1760514604215,2.441,4130.4,4129.4,5.82136944]
[1760514604420,2.441,4130.3,4130.2,2.42118741]
[1760514606118,0.001,4130.6,4130.4,2.42105958]
[1760514606288,2.44,4130.5,4130.4,2.42105958]
[1760514606692,0.001,4130.6,4130.5,2.4210144]
[1760514606916,2.441,4130.6,4130.5,2.4210144]
[1760514608033,2.441,4130.6,4130.5,2.8607144]
[1760514608235,2.441,4130.6,4130.5,3.38889849]
[1760514608617,2.441,4130.6,4130.5,3.50969849]
[1760514608803,2.441,4130.6,4130.5,3.06999849]
[1760514610333,4.623,4130.6,4130.5,3.50959849]
[1760514610511,3.532,4130.6,4130.5,3.50959849]
[1760514610835,2.441,4130.6,4130.5,3.50959849]
[1760514611808,16.34449716,4130.6,4130.5,0.1208]
[1760514612144,2.4211225,4130.4,4129.0,0.72835952]
[1760514612296,1.92,4130.1,4129.0,0.72835952]
[1760514612605,1.92,4130.1,4128.3,0.2339]
[1760514612606,0.0604,4129.1,4128.3,0.2339]
[1760514612804,2.441,4129.0,4128.9,2.42193769]
[1760514613020,0.0604,4129.9,4128.9,0.92399848]
[1760514613194,4.361,4129.8,4129.2,2.42173053]
[1760514613401,4.361,4129.7,4129.2,2.42173053]
[1760514613702,2.441,4129.7,4128.9,0.48439848]
[1760514613918,2.441,4129.7,4129.3,2.42171348]
[1760514614344,2.441,4129.7,4129.1,2.42179159]
[1760514614519,1.92,4129.6,4129.1,2.42179159]
[1760514614834,2.54,4129.7,4129.4,2.42165176]
[1760514614835,2.441,4129.7,4129.4,2.42165176]
[1760514615013,2.441,4129.7,4128.8,0.4396]
[1760514615546,2.442,4129.6,4129.5,2.42155214]
[1760514615703,2.442,4129.6,4129.5,2.86115214]
[1760514615906,2.442,4129.6,4129.2,2.42177116]
[1760514616102,0.0604,4129.3,4129.0,2.42187479]
[1760514616336,0.0604,4129.3,4129.1,2.42179492]
[1760514616548,0.0604,4129.3,4128.4,0.4396]
[1760514616732,0.0604,4129.3,4128.5,0.60940513]
[1760514617054,0.0604,4129.3,4128.4,2.4222459]
[1760514617055,2.42177745,4129.2,4128.4,2.4222459]
[1760514617257,2.541,4129.1,4127.8,0.4416]
[1760514617539,5.50102116,4129.1,4128.3,2.4222935]
[1760514617774,5.50102116,4129.1,4127.8,0.4416]
[1760514617775,7.92287836,4129.1,4127.8,0.4416]
[1760514617945,2.541,4129.1,4127.9,2.4225393]
[1760514618156,2.541,4129.1,4127.8,0.4416]
[1760514618157,2.541,4129.1,4128.0,0.28641393]
[1760514618457,2.541,4129.1,4128.6,2.42212736]
[1760514618613,2.442,4129.1,4129.0,2.42189392]
[1760514619040,2.442,4129.1,4128.3,2.96002116]
[1760514619243,2.442,4129.1,4128.7,2.4220531]
[1760514619513,2.442,4129.1,4128.9,2.42194348]
[1760514620146,2.182,4129.0,4128.9,2.42194348]
[1760514620648,2.182,4129.0,4128.9,3.34594837]
[1760514620852,1.091,4129.0,4128.9,3.34594837]
[1760514621053,0.72849571,4130.2,4128.9,0.92400489]
[1760514621211,2.442,4130.1,4129.0,0.46381893]
[1760514621412,2.96102116,4130.6,4129.0,0.46381893]
[1760514621413,2.442,4130.0,4129.9,2.42136613]
[1760514621628,2.442,4130.0,4129.5,2.42155954]
[1760514621830,2.442,4130.0,4129.1,2.65568975]
[1760514621831,2.442,4130.0,4129.9,2.42136613]
[1760514623438,2.442,4130.0,4129.9,2.86096613]
[1760514623747,0.12,4130.4,4130.0,2.42125864]
[1760514623948,0.12,4130.4,4129.9,2.42136583]
[1760514624549,0.12,4130.4,4130.0,2.4213048]
[1760514624949,2.443,4130.3,4130.0,2.4213048]
[1760514626030,2.443,4130.3,4129.7,0.1208]
[1760514626542,2.443,4130.3,4130.0,2.4212835]
[1760514626740,2.443,4130.3,4129.7,0.1208]
[1760514626942,0.0604,4129.8,4129.7,0.1208]
[1760514627140,2.5034,4129.8,4129.1,0.2339]
[1760514627342,0.1208,4130.0,4129.4,0.1208]
[1760514627544,0.001,4130.5,4130.2,2.42117387]
[1760514627739,1.119,4130.4,4129.5,0.463816]
[1760514627927,1.119,4130.4,4130.3,2.42113163]
[1760514628254,2.444,4130.4,4129.9,0.4396]
[1760514628434,2.444,4130.4,4129.7,2.4214834]
[1760514628638,2.444,4130.4,4130.2,2.42114484]
[1760514628837,2.444,4130.4,4130.0,2.42129896]
[1760514629031,0.001,4130.5,4129.7,0.31032317]
[1760514629232,2.444,4130.4,4129.8,0.4396]
[1760514630228,2.182,4130.3,4130.1,2.42120379]
[1760514630643,2.182,4130.3,4130.2,2.42119025]
[1760514632160,2.444,4130.4,4130.2,2.42119025]
[1760514632329,2.444,4130.4,4130.1,2.4212302]
[1760514632957,2.444,4130.4,4130.1,2.42124075]
[1760514634865,21.19197293,4130.3,4128.6,0.4396]
[1760514635158,2.42136769,4129.9,4129.1,2.42179394]
[1760514635363,4.364,4129.8,4129.1,2.42179394]
[1760514636139,6.78543057,4129.8,4129.1,2.42179394]
[1760514636346,6.78543057,4129.8,4129.0,2.42187428]
[1760514636557,2.63721,4129.6,4128.5,0.4396]
[1760514636882,0.0604,4129.7,4129.1,2.42179838]
[1760514637451,6.7854415,4129.8,4128.9,2.42194889]
[1760514637452,0.1208,4129.6,4129.5,2.42160067]
[1760514637649,0.12671239,4132.7,4128.9,0.1208]
[1760514637650,2.42073274,4131.0,4130.2,2.42114933]
[1760514637853,2.445,4130.4,4130.1,2.42124144]
[1760514638063,2.445,4130.4,4130.1,2.42124521]
[1760514638683,2.445,4130.4,4129.6,0.4396]
[1760514638900,2.445,4130.4,4129.9,2.421365]
[1760514639115,2.445,4130.4,4129.7,2.42143254]
[1760514639399,2.445,4130.4,4129.5,2.4215558]
[1760514639400,0.099,4130.3,4129.5,2.4215558]
[1760514639693,0.82746387,4130.3,4129.5,2.4215558]
[1760514639994,0.82746387,4130.3,4129.4,2.42165886]
[1760514640194,6.52319038,4130.2,4129.3,2.42171796]
[1760514640425,1.92,4130.1,4129.2,0.2339]
[1760514640684,2.445,4130.0,4129.2,0.2339]
[1760514640879,2.445,4130.0,4129.5,2.4215886]
[1760514641086,0.0604,4129.9,4129.5,2.4215886]
[1760514641881,0.0604,4129.9,4129.6,2.42153519]
[1760514642058,0.0604,4129.9,4129.5,2.42158569]
[1760514643756,0.0604,4129.9,4129.4,2.42164184]
[1760514644792,0.0604,4129.9,4129.5,2.42158941]
[1760514644991,0.0604,4129.9,4129.2,0.2339]
[1760514645283,2.444,4129.8,4129.3,2.42171796]
[1760514645504,2.444,4129.8,4129.3,2.85461796]
[1760514646008,2.444,4129.8,4129.2,2.65562011]
[1760514646204,2.444,4129.8,4129.3,2.42171201]
[1760514646599,2.444,4129.8,4129.3,2.85461201]
[1760514647310,0.0596,4129.9,4129.3,2.85461201]
[1760514647482,3.3531963,4129.9,4129.3,2.85461201]
[1760514647682,0.1208,4129.7,4129.4,2.42164957]
[1760514648216,0.1208,4129.7,4129.3,2.85459847]
[1760514648387,2.444,4129.6,4129.3,2.85459847]
[1760514648784,2.444,4129.6,4129.3,2.85459762]
[1760514649016,2.444,4129.6,4129.2,2.65566929]
[1760514649213,2.444,4129.6,4129.2,0.2339]
[1760514649711,2.444,4129.6,4129.1,2.42179652]
[1760514649947,2.444,4129.6,4128.1,0.2339]
[1760514649948,0.37984905,4129.0,4127.0,2.557]
[1760514650215,0.138612,4128.4,4127.6,0.6336]
[1760514650431,0.1251,4127.9,4127.4,0.002]
[1760514650584,26.52414614,4127.9,4127.4,0.002]
[1760514650782,2.42277407,4127.5,4127.4,0.002]
[1760514651029,26.97462948,4127.5,4127.4,0.002]
[1760514651186,27.07442948,4127.5,4127.4,0.002]
[1760514651491,27.70802948,4127.5,4127.4,0.002]
[1760514652106,30.86672648,4127.5,4127.4,0.002]
[1760514652305,14.54434925,4127.5,4127.4,0.002]
[1760514652484,5.39868536,4127.5,4127.4,0.002]
[1760514652685,17.16841636,4127.5,4127.4,0.002]
[1760514652886,12.81998736,4127.5,4127.4,0.002]
[1760514653087,8.05417136,4127.5,4127.4,0.002]
[1760514653785,7.70403136,4127.5,4127.4,0.002]
[1760514653986,6.41135545,4127.5,4127.4,0.002]
[1760514654238,13.48465745,4127.5,4127.4,0.002]
[1760514654822,7.57900538,4127.5,4127.4,0.002]
[1760514655017,7.86000538,4127.5,4127.4,0.002]
[1760514655315,3.46667009,4127.5,4127.4,0.002]
[1760514655560,0.22228928,4127.9,4127.4,0.002]
[1760514655860,2.454,4127.8,4127.5,2.42277407]
[1760514656026,2.454,4127.7,4127.5,2.42277407]
[1760514656227,2.454,4127.6,4127.5,2.42277407]
[1760514656721,2.454,4127.6,4127.5,2.87067407]
[1760514658254,2.454,4127.6,4127.5,0.4479]
[1760514659159,2.454,4127.6,4127.5,2.87067407]
[1760514659390,0.1003,4128.8,4127.9,2.42251758]
[1760514659665,2.42221072,4128.5,4127.8,2.42257772]
[1760514659858,0.1208,4128.3,4127.8,2.42257772]
[1760514660038,4.374,4128.2,4127.9,0.4479]
[1760514660236,6.558,4128.2,4128.0,0.4479]
[1760514660636,6.558,4128.2,4127.7,0.4479]
[1760514660836,8.98040998,4128.2,4127.7,0.4479]
[1760514661040,0.001,4127.8,4127.7,2.87055668]
[1760514661242,2.455,4127.8,4127.7,2.42265668]
[1760514661960,2.455,4127.8,4127.7,2.87055668]
[1760514662463,2.455,4127.8,4127.7,0.4479]
[1760514662666,2.455,4127.8,4127.7,2.87055668]
[1760514662861,2.455,4127.8,4127.7,2.42265668]
[1760514663266,2.455,4127.8,4127.6,0.1208]
[1760514663469,2.455,4127.8,4127.4,0.002]
[1760514664259,0.001,4127.8,4127.4,0.002]
[1760514664450,2.454,4127.7,4127.4,0.4499]
[1760514664654,0.001,4127.8,4127.5,2.87062669]
[1760514664870,2.454,4127.6,4127.5,2.87062669]
[1760514665079,2.454,4127.6,4127.5,0.4479]
[1760514665285,2.454,4127.6,4127.5,2.87067407]
[1760514665479,0.001,4127.8,4127.5,2.87067407]
[1760514665480,0.001,4127.8,4127.7,2.42265668]
[1760514665685,2.455,4127.8,4127.7,2.42265668]
[1760514665978,2.455,4127.8,4127.7,2.87055668]
[1760514666382,0.001,4127.8,4127.7,2.79771599]
[1760514666564,0.001,4127.8,4127.7,2.91851599]
[1760514666565,2.455,4127.8,4127.7,2.91851599]
[1760514666775,2.455,4127.8,4127.7,3.33204224]
[1760514667283,2.455,4127.8,4127.7,2.88414224]
[1760514667450,2.455,4127.8,4127.7,3.33204224]
[1760514667984,0.001,4127.8,4127.7,2.79771599]
[1760514668284,2.454,4127.8,4127.7,2.79771599]
[1760514669389,2.454,4127.8,4127.7,2.34981599]
[1760514670168,4.638,4127.8,4127.7,2.34981599]
[1760514670685,4.638,4127.8,4127.7,2.82031599]
[1760514670873,4.6372,4127.8,4127.7,2.82031599]
[1760514674887,0.0002,4127.8,4127.7,3.34482224]
[1760514675186,2.4522,4127.8,4127.7,3.34482224]
[1760514676475,0.0002,4127.8,4127.7,3.27198695]
[1760514676679,2.4522,4127.8,4127.7,3.27198695]
[1760514676877,0.0002,4127.8,4127.7,3.27198695]
[1760514677082,1.4352,4127.8,4127.7,3.39278695]
[1760514678097,0.001,4128.3,4128.2,2.42236325]
[1760514678411,0.001,4128.3,4128.2,2.97739958]
[1760514678902,0.001,4128.3,4128.2,3.44789958]
[1760514679066,0.001,4128.3,4128.2,2.97739958]
[1760514679266,0.73,4128.3,4128.2,3.44789958]
[1760514680088,1.093,4128.3,4128.2,3.44789958]
[1760514680289,4.636,4128.3,4128.2,3.44789958]
[1760514681892,0.001,4128.3,4128.2,3.44789958]
[1760514682101,3.544,4128.3,4128.2,3.47212321]
[1760514682303,0.001,4128.3,4128.2,3.47212321]
[1760514682602,2.452,4128.3,4128.2,3.47212321]
[1760514683186,2.452,4128.3,4128.2,3.44789958]
[1760514684376,0.52182506,4129.5,4128.2,3.44789958]
[1760514684621,0.1208,4129.6,4129.5,2.42160067]
[1760514684778,0.64262055,4129.6,4129.5,2.42160067]
[1760514685521,0.52182055,4129.6,4129.5,2.42160067]
[1760514685744,2.97182055,4129.6,4129.5,2.42160067]
[1760514686042,0.1208,4130.5,4130.3,2.42108021]
[1760514686213,2.97177211,4130.4,4130.3,2.42108021]
[1760514687205,2.97177211,4130.4,4129.9,2.42136613]
[1760514687393,0.52177211,4130.3,4130.0,2.4213075]
[1760514687599,0.52177211,4130.2,4130.1,2.42122602]
[1760514689616,0.1208,4130.5,4130.2,2.42119025]
[1760514689617,0.52177211,4130.4,4130.2,2.42119025]
[1760514689832,2.97077211,4130.3,4130.2,2.42119025]
[1760514690016,0.1208,4130.7,4130.5,2.42096724]
[1760514690199,5.15181348,4130.6,4130.5,2.42096724]
[1760514690537,1.61181348,4130.6,4130.5,2.42096724]
[1760514690747,5.15181348,4130.6,4130.5,2.42096724]
[1760514691127,2.96981348,4130.6,4130.5,2.42096724]
[1760514691310,0.1208,4131.0,4130.7,2.42089431]
[1760514691638,2.96935233,4130.9,4130.7,2.42089431]
[1760514692313,0.52035233,4130.8,4130.7,2.42089431]
[1760514692499,0.52035233,4130.8,4130.4,0.02421073]
[1760514692699,2.449,4130.9,4130.8,2.42083857]
[1760514693542,2.449,4130.9,4130.6,2.4209471]
[1760514694249,0.12,4131.0,4130.6,2.4209471]
[1760514694441,0.12,4131.0,4130.8,2.42078405]
[1760514694768,0.52035233,4131.1,4130.9,2.42077997]
[1760514695059,0.52035233,4131.1,4130.9,2.42075872]
[1760514695449,2.448,4131.0,4130.9,2.42075872]
[1760514695657,4.368,4131.0,4130.9,2.42075872]
[1760514695837,0.52035233,4131.0,4130.6,2.54174227]
[1760514696167,2.448,4131.0,4130.8,2.42081169]
[1760514696459,2.96835233,4131.0,4130.8,2.42081169]
[1760514696662,0.52035233,4130.9,4130.8,2.42081169]
[1760514696879,2.96835233,4131.0,4130.8,2.42081169]
[1760514697772,3.46926756,4131.0,4130.7,2.42089491]
[1760514697961,0.52035233,4130.9,4130.7,2.42089491]
[1760514698163,17.57947,4130.7,4129.6,2.42154008]
[1760514698346,1.92,4130.5,4129.1,0.2366]
[1760514698546,11.368812,4130.1,4129.1,0.2366]
[1760514698750,0.52035233,4130.0,4129.5,2.42159728]
[1760514699047,2.449,4129.9,4129.3,2.42167785]
[1760514699244,2.96935233,4129.9,4129.1,0.2366]
[1760514699571,0.0618,4129.2,4128.7,2.4220699]
[1760514699741,2.448,4129.1,4128.9,2.42190325]
[1760514699937,2.448,4129.1,4129.0,2.42189392]
[1760514700149,4.63,4129.1,4129.0,2.42189392]
[1760514700484,4.63,4129.1,4129.0,2.87209392]
[1760514701476,4.63,4129.1,4129.0,2.42189392]
[1760514703198,2.448,4129.1,4129.0,0.93458648]
[1760514703358,2.448,4129.1,4129.0,3.3564804]
[1760514703557,2.448,4129.1,4129.0,2.9062804]
[1760514704098,2.448,4129.1,4129.0,3.3564804]
[1760514705297,2.448,4129.1,4129.0,2.42189392]
[1760514705865,2.96901235,4129.1,4129.0,2.42189392]
[1760514706275,2.96901235,4129.1,4128.3,0.4502]
[1760514706477,0.52101235,4129.0,4128.8,2.42198663]
[1760514706760,0.52101235,4128.9,4128.8,2.42198663]
[1760514707806,2.448,4129.1,4129.0,2.42189392]
[1760514707976,0.52143304,4129.1,4129.0,2.42189392]
[1760514708200,2.96943304,4129.1,4128.7,0.1208]
[1760514708385,0.52143304,4129.0,4128.8,2.42200114]
[1760514708584,0.52143304,4128.9,4128.8,2.42200114]
[1760514709599,0.52143304,4128.9,4128.8,2.87220114]
[1760514709818,0.52143304,4128.9,4128.8,2.42200114]
[1760514710186,2.70343304,4128.9,4128.7,2.54286471]
[1760514710388,0.52154025,4128.8,4128.7,0.1208]
[1760514710588,1.13569427,4128.8,4128.3,2.42226349]
[1760514710888,3.18934025,4128.7,4128.2,2.42234893]
[1760514711088,0.52154025,4128.6,4128.3,2.42227958]
[1760514711304,0.52154025,4128.5,4128.3,2.42227958]
[1760514711497,2.5688,4128.7,4128.4,2.42224406]
[1760514711693,0.52153696,4128.6,4128.5,2.42218723]
[1760514712596,2.96953696,4128.6,4128.5,2.42218723]
[1760514713394,2.448,4128.6,4128.5,2.42218723]
[1760514713807,2.96953696,4128.6,4128.5,2.42218723]
[1760514714192,2.448,4128.6,4128.5,2.42218723]
[1760514715289,2.96929022,4128.6,4128.5,2.42218723]
[1760514715613,2.448,4128.6,4128.5,2.42218723]
[1760514716124,2.96929022,4128.6,4128.5,2.42218723]
[1760514716299,2.448,4128.6,4128.5,2.42218723]
[1760514716621,2.448,4128.6,4128.4,2.4222321]
[1760514716827,2.96929022,4128.6,4128.5,2.42218723]
[1760514717192,2.448,4128.6,4128.5,2.42218723]
[1760514717489,2.448,4128.6,4128.2,0.1208]
[1760514717695,2.448,4128.6,4128.3,2.42230303]
[1760514717696,0.52049022,4128.5,4128.3,2.42230303]
[1760514717928,0.52049022,4128.5,4128.4,2.4222459]
[1760514718316,2.448,4128.6,4128.4,2.42222441]
[1760514718496,2.448,4128.6,4128.5,2.42218723]
[1760514719099,2.448,4128.6,4128.3,2.42225415]
[1760514719293,2.448,4128.6,4128.5,0.002]
[1760514719517,2.448,4128.6,4128.5,2.42418723]
[1760514719894,2.448,4128.6,4128.5,0.002]
[1760514720096,4.63,4128.6,4128.5,0.002]
[1760514720325,3.539,4128.6,4128.5,0.002]
[1760514720523,3.6598,4128.6,4128.5,0.002]
[1760514722523,2.5688,4128.6,4128.5,0.002]
[1760514722728,0.1208,4128.6,4128.5,0.002]
[1760514722940,2.446,4128.6,4128.5,0.4548]
[1760514723107,2.446,4128.6,4128.5,0.002]
[1760514723300,2.5668,4128.6,4128.5,0.002]
[1760514724502,14.432811,4128.6,4128.5,0.002]
[1760514724696,16.27121684,4128.6,4128.5,0.002]
[1760514724924,6.47847084,4128.6,4128.5,0.002]
[1760514725225,6.609477,4128.6,4128.5,0.002]
[1760514725798,4.4868,4128.6,4128.5,0.002]
[1760514726121,8.77928,4128.6,4128.5,0.002]
[1760514726320,11.20140856,4128.6,4128.5,0.002]
[1760514726517,4.4868,4128.6,4128.5,0.002]
[1760514726731,5.48387085,4128.6,4128.5,0.002]
[1760514727035,20.29865841,4128.6,4128.5,0.002]
[1760514728012,19.27113441,4128.6,4128.5,0.002]
[1760514729032,21.01397441,4128.6,4128.5,0.002]
[1760514729203,17.89842741,4128.6,4128.5,0.002]
[1760514729410,17.44526341,4128.6,4128.5,0.002]
[1760514729901,9.16086867,4128.6,4128.5,0.002]
[1760514730102,22.31843467,4128.6,4128.5,0.002]
[1760514730304,18.61988067,4128.6,4128.5,0.002]
[1760514730530,15.72650567,4128.6,4128.5,0.002]
[1760514731339,17.08272367,4128.6,4128.5,0.002]
[1760514731633,16.41426567,4128.6,4128.5,0.002]
[1760514731930,13.63516867,4128.6,4128.5,0.002]
[1760514732133,11.03117036,4128.6,4128.5,0.002]
[1760514732339,10.03409951,4128.6,4128.5,0.002]
[1760514732504,5.40509951,4128.6,4128.5,0.002]
[1760514732710,7.85109951,4128.6,4128.5,0.002]
[1760514732906,7.85109951,4128.6,4128.5,0.4302]
[1760514733221,7.85109951,4128.6,4128.5,0.002]
[1760514734123,12.59175951,4128.6,4128.5,0.002]
[1760514734318,7.85109951,4128.6,4128.5,0.002]
[1760514734515,5.40509951,4128.6,4128.5,0.002]
[1760514734744,4.88826926,4128.6,4128.5,0.4302]
[1760514734917,4.88826926,4128.6,4128.5,2.85238723]
[1760514735123,4.88826926,4128.6,4128.5,0.4302]
[1760514735629,4.88826926,4128.6,4128.5,0.002]
[1760514737739,4.88826926,4128.6,4128.5,0.4302]
[1760514737955,4.88826926,4128.6,4128.5,0.002]
[1760514738111,4.88926926,4128.6,4128.5,0.002]
[1760514740128,3.53526926,4128.6,4128.5,0.4302]
[1760514740347,7.07326926,4128.6,4128.5,2.85238723]
[1760514740555,2.44326926,4128.6,4128.5,2.85238723]
[1760514740752,2.44326926,4128.6,4128.5,3.37985207]
[1760514740753,0.52326926,4128.6,4128.5,3.37985207]
[1760514740954,2.96926926,4128.6,4128.5,3.37985207]
[1760514741455,0.52246926,4128.6,4128.5,3.37985207]
[1760514741758,2.447,4128.6,4128.5,3.37985207]
[1760514741970,0.0618,4130.5,4129.9,2.42135811]
[1760514741971,2.96283025,4130.5,4129.9,2.42135811]
[1760514742156,2.96283025,4130.8,4130.0,0.6597]
[1760514742456,0.1208,4130.5,4130.1,2.84944125]
[1760514742753,0.1208,4130.5,4130.4,2.42107301]
[1760514742921,3.69116325,4131.4,4130.4,0.4282]
[1760514743122,0.728333,4131.4,4130.6,2.42090578]
[1760514743355,2.446,4131.3,4130.9,2.42075497]
[1760514743551,2.446,4131.3,4130.6,0.4282]
[1760514743756,2.96283025,4131.2,4130.6,0.4282]
[1760514744262,2.96283025,4130.8,4130.2,0.4282]
[1760514744435,2.446,4130.7,4130.5,2.42100339]
[1760514744628,2.446,4130.6,4130.5,2.42100339]
[1760514745340,2.446,4130.6,4130.5,2.84917645]
[1760514746638,2.96283025,4131.1,4130.7,2.42088123]
[1760514746837,2.446,4131.0,4130.7,2.42088123]
[1760514747238,2.446,4131.0,4130.8,2.42083792]
[1760514747445,2.446,4131.0,4130.5,2.84920947]
[1760514747446,2.446,4131.0,4130.7,2.42087969]
[1760514747872,2.446,4131.0,4130.6,2.42093974]
[1760514748173,2.446,4131.0,4130.5,2.8491983]
[1760514748470,2.446,4131.0,4130.5,0.4282]
[1760514748771,2.96283025,4130.8,4130.4,2.42106706]
[1760514748944,2.96283025,4130.8,4130.5,2.42101071]
[1760514749139,2.96283025,4130.8,4130.2,0.4282]
[1760514749352,2.96283025,4130.8,4130.2,2.84935583]
[1760514749553,2.96283025,4130.8,4130.5,2.42101176]
[1760514749743,2.96283025,4130.8,4130.4,2.42105699]
[1760514750177,2.182,4130.7,4130.5,2.42101405]
[1760514750373,2.445,4130.6,4130.0,2.65280461]
[1760514750746,2.445,4130.6,4130.0,3.08100461]
[1760514750941,2.445,4130.6,4130.1,2.42124888]
[1760514751142,2.445,4130.6,4130.2,2.42117981]
[1760514751648,2.445,4130.6,4130.3,2.42112385]
[1760514754371,2.96283025,4130.5,4130.0,0.1208]
[1760514754580,2.96283025,4130.1,4129.6,2.42150243]
[1760514754896,2.96283025,4130.1,4129.3,0.2315]
[1760514754897,2.96283025,4129.8,4129.3,0.2315]
[1760514755064,2.445,4129.7,4129.4,2.42164938]
[1760514755259,2.445,4129.7,4129.3,2.65320056]
[1760514755696,2.96283025,4129.4,4129.2,0.1208]
[1760514755911,2.445,4129.3,4128.8,0.1208]
[1760514756262,2.445,4129.3,4128.9,0.4282]
[1760514756888,0.1208,4129.2,4128.9,2.4219506]
[1760514757105,0.1208,4129.2,4129.0,0.4282]
[1760514757262,0.1208,4129.2,4129.0,2.85008812]
[1760514757462,0.1208,4129.2,4129.1,3.08153526]
[1760514757984,0.1208,4129.2,4128.8,0.4282]
[1760514758487,0.1208,4129.2,4128.5,0.1228]
[1760514758488,5.40683025,4129.1,4128.5,0.551]
[1760514758692,2.444,4129.1,4128.6,2.42212856]
[1760514758887,2.444,4129.1,4128.7,2.42205383]
[1760514759094,5.40683025,4129.1,4128.6,2.42211819]
[1760514759262,0.1208,4128.9,4128.6,2.42211819]
[1760514759461,2.444,4128.8,4128.5,0.002]
[1760514759662,2.444,4128.8,4128.7,0.4282]
[1760514759860,2.444,4128.8,4128.7,2.8502699]
[1760514760082,2.444,4128.8,4128.7,0.4282]
[1760514760083,3.535,4128.8,4128.7,0.4282]
[1760514760289,4.626,4128.8,4128.5,0.002]
[1760514761778,4.626,4128.8,4128.6,2.42212856]
[1760514761991,4.626,4128.8,4128.5,2.89716781]
[1760514762602,4.626,4128.8,4128.5,0.475]
[1760514762973,4.626,4128.8,4128.5,0.002]
[1760514763188,4.626,4128.8,4128.5,2.42418284]
[1760514763881,3.535,4128.8,4128.5,2.42418284]
[1760514764813,0.12,4128.9,4128.5,2.42418284]
[1760514764978,0.64040632,4128.9,4128.5,2.42418284]
[1760514765717,0.64040632,4128.9,4128.6,0.49722128]
[1760514765915,0.64040632,4128.9,4128.8,2.42201123]
[1760514765916,0.12,4128.9,4128.8,2.42201123]
[1760514766199,0.64120632,4129.2,4128.9,2.42194254]
[1760514766406,2.444,4129.1,4128.9,2.89494254]
[1760514766572,2.444,4129.1,4129.0,2.42189392]
[1760514766773,2.444,4129.1,4128.9,0.473]
[1760514767001,2.444,4129.1,4129.0,2.42189392]
[1760514767166,2.444,4129.1,4128.6,0.1208]
[1760514767167,0.64120632,4129.2,4128.8,0.02422011]
[1760514767374,2.444,4129.1,4128.9,0.473]
[1760514767570,2.444,4129.1,4128.7,0.02422069]
[1760514767571,2.444,4129.1,4129.0,0.473]
[1760514768064,2.444,4129.1,4128.9,2.42194274]
[1760514768287,0.1208,4129.2,4128.7,0.473]
[1760514768488,2.444,4129.0,4128.9,2.42195257]
[1760514768737,2.444,4129.0,4128.8,2.42200039]
[1760514768907,2.444,4129.0,4128.9,2.42195257]
[1760514770427,4.625,4129.0,4128.9,2.42195257]
[1760514770620,5.14586333,4129.0,4128.9,2.42195257]
[1760514772124,4.05486333,4129.0,4128.9,2.42195257]
[1760514772325,2.96386333,4129.0,4128.9,2.42195257]
[1760514772523,2.443,4129.0,4128.9,2.42195257]
[1760514773425,2.443,4129.0,4128.9,2.89495257]
[1760514774721,0.52083431,4129.1,4128.9,2.89495257]
[1760514775033,0.1208,4129.2,4129.1,2.42183526]
[1760514775332,2.5638,4129.2,4129.1,2.65513526]
[1760514775629,2.5638,4129.2,4129.1,3.12813526]
[1760514776233,0.52104873,4129.7,4129.5,2.4215937]
[1760514776532,2.96404873,4129.6,4129.4,2.42164296]
[1760514776714,2.443,4129.6,4129.5,2.42160067]
[1760514776914,2.96418825,4129.6,4129.4,2.42164736]
[1760514777113,0.52118825,4129.5,4129.4,2.42164736]
[1760514777319,0.52118825,4129.5,4129.3,2.42169665]
[1760514777635,0.52118825,4129.4,4129.3,2.42169665]
[1760514778536,0.52118825,4129.4,4129.3,2.85039665]
[1760514779119,2.96418825,4129.4,4129.3,2.85039665]
[1760514780108,5.14618825,4129.4,4129.3,2.85039665]
[1760514781125,5.14618825,4129.4,4128.8,0.4287]
[1760514781306,0.52118825,4129.3,4129.0,2.42184983]
[1760514781511,0.52118825,4129.2,4129.1,2.42183526]
[1760514782445,0.52118825,4129.2,4129.1,2.65893526]
[1760514782648,0.52118825,4129.2,4129.1,3.08763526]
[1760514784943,0.52118825,4129.2,4128.8,0.71398305]
[1760514785146,2.96418825,4129.1,4128.9,2.42195118]
[1760514785441,2.96418825,4129.1,4128.7,2.42202439]
[1760514785442,0.52118825,4129.0,4128.7,2.42202439]
[1760514785642,0.52118825,4128.9,4128.6,2.42212856]
[1760514785848,2.96418825,4128.8,4128.7,2.4220699]
[1760514787648,2.96418825,4128.8,4128.7,3.37846132]
[1760514788348,0.52038825,4128.8,4128.7,3.37846132]
[1760514789726,2.96338825,4128.8,4128.7,3.37846132]
[1760514790221,5.14538825,4128.8,4128.7,3.37846132]
[1760514790828,4.625,4128.8,4128.7,3.37846132]
[1760514791166,0.1208,4129.6,4129.4,2.42165106]
[1760514791327,2.443,4129.5,4129.4,2.42165106]
[1760514791819,0.1208,4129.6,4129.4,2.42165106]
[1760514792020,0.0618,4130.5,4129.5,0.460216]
[1760514792267,0.1208,4130.5,4130.4,2.42107301]
[1760514792562,2.443,4130.5,4130.4,2.42107301]
[1760514793450,2.443,4130.5,4130.3,2.42110207]
[1760514793662,2.443,4130.5,4130.1,0.1208]
[1760514793956,2.542,4130.5,4130.1,2.54203681]
[1760514794134,2.542,4130.5,4129.4,0.436]
[1760514794135,3.05046475,4130.5,4129.9,2.42134811]
[1760514794325,0.1208,4130.3,4129.9,2.42134811]